fUST/lending_fUST_20240421
["ID","MTS","AMOUNT","RATE_DAILY","PERIOD"]
[323117526,1713682232779,-247.12439728,0.00021316,2]
[323117527,1713682232788,-300.0,0.00021316,2]
[323117528,1713682232796,-59135.86264102,0.00021316,2]
[323117529,1713682232805,-1489.75322658,0.00021317,2]
[323117531,1713682232815,-1090.08472256,0.00021317,2]
[323117532,1713682232825,-468.2653797,0.00021318,2]
[323117533,1713682232834,-154.84515485,0.00021319,2]
[323117545,1713682232939,-155.2002517,0.00021322,2]
[323117547,1713682232949,-8867.62161279,0.00021323,2]
[323117602,1713682238641,-564.30547091,0.00021309,2]
[323117604,1713682238651,-154.84515485,0.00021309,2]
[323117606,1713682238660,-30433.70698184,0.00021323,2]
[323117609,1713682238671,-33232.29809136,0.00021323,2]
[323117611,1713682238680,-157.41918186,0.00021334,2]
[323117613,1713682238689,-1201.28235502,0.0002143,2]
[323117615,1713682238698,-12610.71640316,0.00021437,2]
[323117617,1713682238707,-157.41918185,0.00021438,2]
[323117618,1713682238717,-157.41918185,0.00021541,2]
[323117621,1713682238726,-204.00475123,0.00021561,2]
[323117622,1713682238738,-4000.0,0.00021641,2]
[323117624,1713682238747,-4000.0,0.00021641,2]
[323117626,1713682238756,-4000.0,0.00021641,2]
[323117628,1713682238765,-4000.0,0.00021641,2]
[323117630,1713682238774,-4000.0,0.00021641,2]
[323117632,1713682238783,-3354.45710403,0.00021641,2]
[323117634,1713682238792,-154.86062544,0.00021781,2]
[323117636,1713682238801,-155.87541847,0.00021781,2]
[323117638,1713682238810,-2622.05694145,0.00021805,2]
[323117640,1713682238819,-519.6950038,0.0002181,2]
[323117642,1713682238828,-153.0,0.000219,2]
[323117644,1713682238837,-153.0,0.000219,2]
[323117646,1713682238846,-944.13162968,0.00021914,2]
[323117648,1713682238855,-11216.06582281,0.00021914,2]
[323117650,1713682238864,-318.43046804,0.00021915,2]
[323117652,1713682238873,-160.34890432,0.00021915,2]
[323117654,1713682238882,-155.36499457,0.00021915,2]
[323117656,1713682238891,-212.32549327,0.00021915,2]
[323117658,1713682238900,-297.07082901,0.00021915,2]
[323117660,1713682238909,-250.82386494,0.00021915,2]
[323117662,1713682238918,-455.76214059,0.00021915,2]
[323117664,1713682238927,-259.3768508,0.00021915,2]
[323117666,1713682238936,-251.55768865,0.00021915,4]
[323117668,1713682238945,-158.60861187,0.00021915,2]
[323117670,1713682238954,-1686.44571208,0.00021915,2]
[323117672,1713682238963,-155.28125821,0.00021915,2]
[323117674,1713682238972,-157.41221878,0.00021915,2]
[323117676,1713682238982,-656.08660552,0.00021915,2]
[323117678,1713682238991,-473.46958463,0.00021915,2]
[323117680,1713682239000,-3465.91118266,0.00021915,2]
[323117682,1713682239008,-155.23863388,0.00021915,2]
[323117684,1713682239017,-156.06700245,0.00021915,2]
[323117686,1713682239026,-156.41929238,0.00021915,2]
[323117688,1713682239035,-409.30236059,0.00021915,2]
[323117690,1713682239044,-274.55766102,0.00021915,2]
[323117692,1713682239053,-156.67476366,0.00021915,2]
[323117694,1713682239062,-158.55732008,0.00021915,2]
[323117696,1713682239071,-183.16873078,0.00021915,2]
[323117698,1713682239080,-219.25274122,0.00021915,2]
[323117700,1713682239089,-155.08589962,0.00021915,2]
[323117702,1713682239098,-155.12292565,0.00021915,2]
[323117704,1713682239108,-208.03429643,0.00021915,2]
[323117706,1713682239117,-278.16323228,0.00021915,2]
[323117708,1713682239126,-330.25617076,0.00021915,2]
[323117710,1713682239135,-1147.48073928,0.00021916,2]
[323117712,1713682239144,-500.0,0.00021917,2]
[323117714,1713682239153,-500.0,0.00021917,2]
[323117716,1713682239162,-500.0,0.00021917,2]
[323117718,1713682239171,-500.0,0.00021917,2]
[323117720,1713682239180,-580.94122252,0.00021917,2]
[323117722,1713682239188,-500.0,0.00021917,2]
[323117724,1713682239197,-500.0,0.00021917,2]
[323117726,1713682239206,-500.0,0.00021917,2]
[323117728,1713682239216,-500.0,0.00021917,2]
[323117730,1713682239225,-500.0,0.00021917,2]
[323117732,1713682239240,-381.31229317,0.00021917,2]
[323117734,1713682239249,-500.0,0.00021917,2]
[323117736,1713682239258,-500.0,0.00021917,2]
[323117738,1713682239267,-158.05190422,0.00021917,2]
[323117740,1713682239277,-500.0,0.00021917,2]
[323117742,1713682239285,-500.0,0.00021917,2]
[323117744,1713682239294,-500.0,0.00021917,2]
[323117746,1713682239304,-500.0,0.00021917,2]
[323117748,1713682239317,-500.0,0.00021917,2]
[323117750,1713682239327,-502.74262873,0.00021917,2]
[323117752,1713682239336,-500.0,0.00021917,2]
[323117754,1713682239345,-500.0,0.00021917,2]
[323117756,1713682239354,-500.0,0.00021917,2]
[323117758,1713682239363,-500.0,0.00021917,2]
[323117760,1713682239372,-500.0,0.00021917,2]
[323117762,1713682239381,-500.0,0.00021917,2]
[323117764,1713682239390,-500.0,0.00021917,2]
[323117766,1713682239400,-500.0,0.00021917,2]
[323117768,1713682239409,-500.0,0.00021917,2]
[323117770,1713682239418,-895.86,0.00021917,2]
[323117772,1713682239427,-500.0,0.00021917,2]
[323117774,1713682239436,-500.0,0.00021917,2]
[323117776,1713682239446,-500.0,0.00021917,2]
[323117778,1713682239455,-500.0,0.00021917,2]
[323117780,1713682239464,-452.93383504,0.00021917,2]
[323117782,1713682239472,-500.0,0.00021917,2]
[323117784,1713682239482,-500.0,0.00021917,2]
[323117786,1713682239493,-500.0,0.00021917,2]
[323117789,1713682239503,-500.0,0.00021917,2]
[323117791,1713682239512,-500.0,0.00021917,2]
[323117793,1713682239522,-500.0,0.00021917,2]
[323117795,1713682239531,-500.0,0.00021917,2]
[323117797,1713682239540,-500.0,0.00021917,2]
[323117799,1713682239549,-500.0,0.00021917,2]
[323117801,1713682239558,-500.0,0.00021917,2]
[323117802,1713682239568,-500.0,0.00021917,2]
[323117804,1713682239577,-500.0,0.00021917,2]
[323117806,1713682239586,-500.0,0.00021917,2]
[323117809,1713682239596,-527.5663066,0.00021917,2]
[323117810,1713682239605,-345.15817908,0.00021917,2]
[323117812,1713682239614,-500.0,0.00021917,2]
[323117824,1713682239715,-500.0,0.00021917,2]
[323117826,1713682239724,-500.0,0.00021917,2]
[323117828,1713682239734,-500.0,0.00021917,2]
[323117831,1713682239743,-500.0,0.00021917,2]
[323117833,1713682239753,-500.0,0.00021917,2]
[323117835,1713682239762,-500.0,0.00021917,2]
[323117837,1713682239771,-500.0,0.00021917,2]
[323117839,1713682239780,-476.50300176,0.00021917,2]
[323117841,1713682239790,-151.0,0.00021917,2]
[323117842,1713682239800,-500.0,0.00021917,2]
[323117844,1713682239809,-500.0,0.00021917,2]
[323117846,1713682239818,-539.54,0.00021917,2]
[323117848,1713682239828,-500.0,0.00021917,2]
[323117851,1713682239837,-500.0,0.00021917,2]
[323117853,1713682239846,-501.17274724,0.00021917,2]
[323117855,1713682239856,-503.11127561,0.00021917,2]
[323117857,1713682239865,-500.0,0.00021917,2]
[323117859,1713682239875,-500.0,0.00021917,2]
[323117861,1713682239885,-500.0,0.00021917,2]
[323117862,1713682239895,-500.0,0.00021917,2]
[323117864,1713682239904,-500.0,0.00021917,2]
[323117867,1713682239914,-500.0,0.00021917,2]
[323117868,1713682239923,-500.0,0.00021917,2]
[323117870,1713682239932,-504.06972496,0.00021917,2]
[323117872,1713682239942,-500.0,0.00021917,2]
[323117875,1713682239952,-500.0,0.00021917,2]
[323117877,1713682239961,-500.0,0.00021917,2]
[323117879,1713682239970,-2897.85,0.00021917,2]
[323117881,1713682239979,-500.0,0.00021917,2]
[323117882,1713682239990,-500.0,0.00021917,2]
[323117884,1713682240000,-500.0,0.00021917,2]
[323117887,1713682240010,-668.25,0.00021917,2]
[323117889,1713682240019,-500.0,0.00021917,2]
[323117891,1713682240028,-500.0,0.00021917,2]
[323117893,1713682240038,-500.0,0.00021917,2]
[323117894,1713682240047,-500.0,0.00021917,2]
[323117896,1713682240057,-500.0,0.00021917,2]
[323117898,1713682240067,-500.0,0.00021917,2]
[323117901,1713682240077,-500.0,0.00021917,2]
[323117903,1713682240086,-500.0,0.00021917,2]
[323117904,1713682240096,-500.0,0.00021917,2]
[323117907,1713682240106,-500.0,0.00021917,2]
[323117908,1713682240115,-501.33397433,0.00021917,2]
[323117909,1713682240124,-500.0,0.00021917,2]
[323117910,1713682240133,-500.0,0.00021917,2]
[323117911,1713682240143,-500.0,0.00021917,2]
[323117912,1713682240153,-500.0,0.00021917,2]
[323117913,1713682240163,-500.0,0.00021917,2]
[323117914,1713682240172,-926.17,0.00021917,2]
[323117915,1713682240181,-500.0,0.00021917,2]
[323117916,1713682240190,-503.61778748,0.00021917,2]
[323117917,1713682240199,-500.38391141,0.00021917,2]
[323117918,1713682240209,-500.0,0.00021917,2]
[323117919,1713682240218,-500.0,0.00021917,2]
[323117920,1713682240227,-500.0,0.00021917,2]
[323117921,1713682240240,-500.0,0.00021917,2]
[323117922,1713682240249,-509.7672341,0.00021917,2]
[323117923,1713682240258,-499.76294027,0.00021917,2]
[323117924,1713682240267,-500.0,0.00021917,2]
[323117925,1713682240277,-500.0,0.00021917,2]
[323117926,1713682240286,-500.0,0.00021917,2]
[323117927,1713682240295,-500.0,0.00021917,2]
[323117929,1713682240304,-600.82,0.00021917,2]
[323117931,1713682240314,-500.0,0.00021917,2]
[323117933,1713682240323,-500.0,0.00021917,2]
[323117935,1713682240332,-500.0,0.00021917,2]
[323117937,1713682240342,-1032.11,0.00021917,2]
[323117939,1713682240351,-500.0,0.00021917,2]
[323117941,1713682240360,-500.0,0.00021917,2]
[323117943,1713682240369,-500.0,0.00021917,2]
[323117945,1713682240378,-500.0,0.00021917,2]
[323117947,1713682240388,-197.33801434,0.00021917,2]
[323117949,1713682240397,-500.0,0.00021917,2]
[323117950,1713682240407,-500.0,0.00021917,2]
[323117952,1713682240416,-1200.37,0.00021917,2]
[323117954,1713682240425,-500.0,0.00021917,2]
[323117956,1713682240433,-600.22419037,0.00021917,2]
[323117958,1713682240443,-751.54,0.00021917,2]
[323117960,1713682240451,-500.0,0.00021917,2]
[323117962,1713682240460,-386.33007067,0.00021917,2]
[323117964,1713682240470,-500.0,0.00021917,2]
[323117966,1713682240479,-500.0,0.00021917,2]
[323117968,1713682240489,-500.0,0.00021917,2]
[323117970,1713682240498,-500.0,0.00021917,2]
[323117972,1713682240507,-500.0,0.00021917,2]
[323117974,1713682240516,-823.34,0.00021917,2]
[323117976,1713682240525,-500.0,0.00021917,2]
[323117978,1713682240534,-500.0,0.00021917,2]
[323117980,1713682240544,-500.0,0.00021917,2]
[323117982,1713682240552,-500.0,0.00021917,2]
[323117984,1713682240562,-500.0,0.00021917,2]
[323117986,1713682240571,-500.0,0.00021917,2]
[323117988,1713682240580,-500.0,0.00021917,2]
[323117990,1713682240590,-500.0,0.00021917,2]
[323117992,1713682240599,-500.0,0.00021917,2]
[323117994,1713682240609,-1463.78,0.00021917,2]
[323117996,1713682240618,-507.28494904,0.00021917,2]
[323117998,1713682240627,-980.47,0.00021917,2]
[323118000,1713682240636,-1041.63,0.00021917,2]
[323118002,1713682240644,-500.0,0.00021917,2]
[323118003,1713682240654,-500.0,0.00021917,2]
[323118005,1713682240664,-500.0,0.00021917,2]
[323118007,1713682240674,-500.0,0.00021917,2]
[323118009,1713682240683,-500.0,0.00021917,2]
[323118011,1713682240691,-500.0,0.00021917,2]
[323118013,1713682240700,-193.23213698,0.00021917,2]
[323118015,1713682240709,-500.0,0.00021917,2]
[323118017,1713682240718,-1235.19,0.00021917,2]
[323118019,1713682240728,-550.81,0.00021917,2]
[323118021,1713682240739,-500.0,0.00021917,2]
[323118023,1713682240748,-500.0,0.00021917,2]
[323118025,1713682240757,-500.0,0.00021917,2]
[323118027,1713682240766,-500.0,0.00021917,2]
[323118029,1713682240775,-500.0,0.00021917,2]
[323118031,1713682240786,-500.0,0.00021917,2]
[323118033,1713682240796,-500.0,0.00021917,2]
[323118035,1713682240805,-520.81749473,0.00021917,2]
[323118037,1713682240815,-1709.09,0.00021917,2]
[323118039,1713682240824,-501.06965505,0.00021917,2]
[323118041,1713682240833,-500.0,0.00021917,2]
[323118043,1713682240843,-500.0,0.00021917,2]
[323118045,1713682240852,-500.0,0.00021917,2]
[323118047,1713682240862,-519.09180318,0.00021917,2]
[323118049,1713682240871,-500.0,0.00021917,2]
[323118051,1713682240881,-151.0,0.00021917,2]
[323118053,1713682240890,-500.0,0.00021917,2]
[323118055,1713682240899,-500.0,0.00021917,2]
[323118057,1713682240908,-500.0,0.00021917,2]
[323118059,1713682240918,-2893.04,0.00021917,2]
[323118061,1713682240928,-500.0,0.00021917,2]
[323118063,1713682240937,-500.0,0.00021917,2]
[323118065,1713682240946,-500.0,0.00021917,2]
[323118067,1713682240955,-500.0,0.00021917,2]
[323118069,1713682240965,-500.0,0.00021917,2]
[323118071,1713682240975,-2003.26,0.00021917,2]
[323118073,1713682240985,-500.0,0.00021917,2]
[323118075,1713682240994,-500.0,0.00021917,2]
[323118077,1713682241003,-500.0,0.00021917,2]
[323118079,1713682241013,-500.0,0.00021917,2]
[323118081,1713682241022,-500.0,0.00021917,2]
[323118083,1713682241031,-500.0,0.00021917,2]
[323118085,1713682241040,-500.0,0.00021917,2]
[323118087,1713682241050,-500.0,0.00021917,2]
[323118089,1713682241059,-500.0,0.00021917,2]
[323118091,1713682241068,-500.0,0.00021917,2]
[323118093,1713682241078,-500.0,0.00021917,2]
[323118095,1713682241087,-500.0,0.00021917,2]
[323118096,1713682241096,-500.0,0.00021917,2]
[323118098,1713682241105,-500.0,0.00021917,2]
[323118100,1713682241115,-500.0,0.00021917,2]
[323118102,1713682241124,-500.0,0.00021917,2]
[323118104,1713682241133,-1858.5,0.00021917,2]
[323118106,1713682241142,-521.58579015,0.00021917,2]
[323118108,1713682241151,-859.85,0.00021917,2]
[323118110,1713682241160,-500.0,0.00021917,2]
[323118112,1713682241169,-500.0,0.00021917,2]
[323118114,1713682241179,-500.0,0.00021917,2]
[323118116,1713682241188,-500.0,0.00021917,2]
[323118118,1713682241197,-500.0,0.00021917,2]
[323118120,1713682241206,-229.75180404,0.00021917,2]
[323118122,1713682241216,-1129.46,0.00021917,2]
[323118124,1713682241225,-615.85319952,0.00021917,2]
[323118126,1713682241241,-500.0,0.00021917,2]
[323118129,1713682241251,-2335.39,0.00021917,2]
[323118130,1713682241260,-503.34632055,0.00021917,2]
[323118132,1713682241270,-502.52269804,0.00021917,2]
[323118134,1713682241280,-500.0,0.00021917,2]
[323118136,1713682241289,-500.0,0.00021917,2]
[323118138,1713682241298,-316.37896472,0.00021917,2]
[323118140,1713682241309,-500.0,0.00021917,2]
[323118142,1713682241318,-500.0,0.00021917,2]
[323118144,1713682241326,-500.0,0.00021917,2]
[323118146,1713682241335,-500.0,0.00021917,2]
[323118148,1713682241345,-500.0,0.00021917,2]
[323118150,1713682241353,-500.0,0.00021917,2]
[323118152,1713682241363,-500.0,0.00021917,2]
[323118162,1713682241373,-500.0,0.00021917,2]
[323118164,1713682241457,-500.0,0.00021917,2]
[323118166,1713682241466,-500.0,0.00021917,2]
[323118168,1713682241475,-500.0,0.00021917,2]
[323118170,1713682241489,-500.0,0.00021917,2]
[323118172,1713682241498,-500.0,0.00021917,2]
[323118174,1713682241507,-500.0,0.00021917,2]
[323118176,1713682241516,-500.0,0.00021917,2]
[323118178,1713682241525,-151.0,0.00021917,2]
[323118180,1713682241534,-500.0,0.00021917,2]
[323118182,1713682241543,-500.0,0.00021917,2]
[323118184,1713682241552,-500.0,0.00021917,2]
[323118186,1713682241561,-500.0,0.00021917,2]
[323118188,1713682241571,-500.0,0.00021917,2]
[323118190,1713682241580,-808.13,0.00021917,2]
[323118192,1713682241589,-500.0,0.00021917,2]
[323118194,1713682241598,-847.92,0.00021917,2]
[323118196,1713682241607,-500.0,0.00021917,2]
[323118198,1713682241616,-500.0,0.00021917,2]
[323118200,1713682241626,-153.85389989,0.00021917,2]
[323118202,1713682241635,-500.0,0.00021917,2]
[323118204,1713682241649,-500.0,0.00021917,2]
[323118206,1713682241658,-500.0,0.00021917,2]
[323118208,1713682241667,-500.0,0.00021917,2]
[323118210,1713682241677,-500.0,0.00021917,2]
[323118212,1713682241687,-2528.35,0.00021917,2]
[323118214,1713682241696,-500.0,0.00021917,2]
[323118216,1713682241705,-522.9736222,0.00021917,2]
[323118218,1713682241715,-500.0,0.00021917,2]
[323118220,1713682241724,-184.020604,0.00021917,2]
[323118222,1713682241736,-500.85165886,0.00021917,2]
[323118224,1713682241745,-500.0,0.00021917,2]
[323118226,1713682241755,-500.0,0.00021917,2]
[323118228,1713682241765,-500.0,0.00021917,2]
[323118230,1713682241775,-500.0,0.00021917,2]
[323118232,1713682241784,-1137.12,0.00021917,2]
[323118234,1713682241793,-500.0,0.00021917,2]
[323118236,1713682241802,-184.020604,0.00021917,2]
[323118238,1713682241811,-503.78754631,0.00021917,2]
[323118240,1713682241821,-500.0,0.00021917,2]
[323118242,1713682241830,-414.250954,0.00021917,2]
[323118245,1713682241842,-500.0,0.00021917,2]
[323118247,1713682241852,-414.250954,0.00021917,2]
[323118249,1713682241860,-500.0,0.00021917,2]
[323118251,1713682241870,-500.0,0.00021917,2]
[323118253,1713682241879,-151.0,0.00021917,2]
[323118255,1713682241888,-414.250954,0.00021917,2]
[323118257,1713682241898,-414.250954,0.00021917,2]
[323118259,1713682241907,-500.0,0.00021917,2]
[323118261,1713682241915,-1992.64,0.00021917,2]
[323118263,1713682241925,-1173.14,0.00021917,2]
[323118265,1713682241934,-500.0,0.00021917,2]
[323118267,1713682241943,-500.0,0.00021917,2]
[323118269,1713682241952,-500.0,0.00021917,2]
[323118271,1713682241961,-500.0,0.00021917,2]
[323118273,1713682241970,-500.0,0.00021917,2]
[323118275,1713682241979,-638.26830152,0.00021917,2]
[323118277,1713682241990,-5785.47,0.00021917,2]
[323118279,1713682242000,-503.58228362,0.00021917,2]
[323118281,1713682242008,-500.0,0.00021917,2]
[323118283,1713682242017,-1000.0,0.00021917,2]
[323118285,1713682242026,-1195.65,0.00021917,2]
[323118287,1713682242035,-177.64130054,0.00021917,2]
[323118289,1713682242044,-500.0,0.00021917,2]
[323118290,1713682242053,-500.0,0.00021917,2]
[323118293,1713682242063,-501.91356259,0.00021917,2]
[323118294,1713682242072,-1082.6,0.00021917,2]
[323118297,1713682242081,-506.03531749,0.00021917,2]
[323118298,1713682242090,-500.0,0.00021917,2]
[323118300,1713682242099,-500.0,0.00021917,2]
[323118302,1713682242108,-865.36,0.00021917,2]
[323118304,1713682242118,-585.82,0.00021917,2]
[323118306,1713682242127,-375.21525571,0.00021917,2]
[323118308,1713682242136,-513.23,0.00021917,2]
[323118311,1713682242145,-500.0,0.00021917,2]
[323118312,1713682242156,-2343.35,0.00021917,2]
[323118314,1713682242165,-2343.35,0.00021917,2]
[323118316,1713682242174,-2343.35,0.00021917,2]
[323118318,1713682242183,-2343.35,0.00021917,2]
[323118321,1713682242193,-2343.35,0.00021917,2]
[323118322,1713682242202,-2343.35,0.00021917,2]
[323118324,1713682242211,-2343.35,0.00021917,2]
[323118326,1713682242220,-2343.35,0.00021917,2]
[323118328,1713682242230,-2343.35,0.00021917,2]
[323118330,1713682242243,-2343.35,0.00021917,2]
[323118332,1713682242252,-2343.35,0.00021917,2]
[323118334,1713682242262,-2343.35,0.00021917,2]
[323118336,1713682242271,-920.24,0.00021917,2]
[323118338,1713682242281,-500.0,0.00021917,2]
[323118340,1713682242291,-166.722068,0.00021917,2]
[323118342,1713682242300,-166.722068,0.00021917,2]
[323118344,1713682242309,-500.0,0.00021917,2]
[323118346,1713682242318,-500.0,0.00021917,2]
[323118348,1713682242328,-500.0,0.00021917,2]
[323118350,1713682242337,-166.722068,0.00021917,2]
[323118352,1713682242346,-166.722068,0.00021917,2]
[323118354,1713682242355,-500.0,0.00021917,2]
[323118356,1713682242364,-504.81786645,0.00021917,2]
[323118358,1713682242373,-165.45827812,0.00021917,2]
[323118360,1713682242382,-500.0,0.00021917,2]
[323118362,1713682242391,-500.0,0.00021917,2]
[323118364,1713682242400,-500.0,0.00021917,2]
[323118366,1713682242409,-500.0,0.00021917,2]
[323118368,1713682242418,-500.0,0.00021917,2]
[323118370,1713682242427,-626.07,0.00021917,2]
[323118372,1713682242436,-500.0,0.00021917,2]
[323118374,1713682242445,-500.0,0.00021917,2]
[323118376,1713682242454,-829.79,0.00021917,2]
[323118378,1713682242463,-503.56401091,0.00021917,2]
[323118380,1713682242471,-500.0,0.00021917,2]
[323118382,1713682242480,-500.0,0.00021917,2]
[323118384,1713682242494,-685.85,0.00021917,2]
[323118386,1713682242503,-3764.97,0.00021917,2]
[323118388,1713682242512,-924.74,0.00021917,2]
[323118390,1713682242520,-500.0,0.00021917,2]
[323118392,1713682242530,-500.0,0.00021917,2]
[323118394,1713682242538,-500.0,0.00021917,2]
[323118396,1713682242547,-500.0,0.00021917,2]
[323118397,1713682242556,-500.0,0.00021917,2]
[323118399,1713682242565,-500.0,0.00021917,2]
[323118401,1713682242574,-500.0,0.00021917,2]
[323118404,1713682242584,-3553.7,0.00021917,2]
[323118406,1713682242593,-390.135278,0.00021917,2]
[323118408,1713682242602,-390.135278,0.00021917,2]
[323118410,1713682242611,-390.135278,0.00021917,2]
[323118411,1713682242620,-240.56300621,0.00021917,2]
[323118413,1713682242629,-316.14188774,0.00021917,2]
[323118415,1713682242641,-500.0,0.00021917,2]
[323118417,1713682242650,-500.0,0.00021917,2]
[323118418,1713682242658,-390.135278,0.00021917,2]
[323118419,1713682242667,-500.0,0.00021917,2]
[323118420,1713682242676,-390.135278,0.00021917,2]
[323118421,1713682242686,-390.135278,0.00021917,2]
[323118423,1713682242695,-190.49879758,0.00021917,2]
[323118425,1713682242704,-500.0,0.00021917,2]
[323118427,1713682242713,-151.0,0.00021917,2]
[323118429,1713682242722,-500.0,0.00021917,2]
[323118431,1713682242733,-500.0,0.00021917,2]
[323118433,1713682242741,-161.110096,0.00021917,2]
[323118435,1713682242750,-500.0,0.00021917,2]
[323118437,1713682242759,-500.0,0.00021917,2]
[323118439,1713682242768,-638.11881833,0.00021917,2]
[323118441,1713682242777,-500.0,0.00021917,2]
[323118443,1713682242786,-500.0,0.00021917,2]
[323118445,1713682242795,-500.0,0.00021917,2]
[323118447,1713682242804,-500.0,0.00021917,2]
[323118449,1713682242813,-500.0,0.00021917,2]
[323118451,1713682242822,-3076.51,0.00021917,2]
[323118453,1713682242831,-2283.51,0.00021917,2]
[323118455,1713682242840,-500.0,0.00021917,2]
[323118457,1713682242849,-500.0,0.00021917,2]
[323118459,1713682242858,-500.0,0.00021917,2]
[323118461,1713682242867,-506.2364864,0.00021917,2]
[323118463,1713682242876,-208.86752318,0.00021917,2]
[323118465,1713682242884,-500.0,0.00021917,2]
[323118467,1713682242893,-500.0,0.00021917,2]
[323118469,1713682242904,-545.24,0.00021917,2]
[323118471,1713682242913,-208.06321737,0.00021917,2]
[323118473,1713682242924,-500.0,0.00021917,2]
[323118475,1713682242934,-500.0,0.00021917,2]
[323118477,1713682242943,-500.0,0.00021917,2]
[323118486,1713682242952,-500.0,0.00021917,2]
[323118489,1713682243033,-500.0,0.00021917,2]
[323118491,1713682243042,-500.0,0.00021917,2]
[323118493,1713682243050,-605.36,0.00021917,2]
[323118494,1713682243059,-500.0,0.00021917,2]
[323118496,1713682243068,-500.0,0.00021917,2]
[323118499,1713682243078,-231.95085135,0.00021917,2]
[323118501,1713682243087,-328.24470851,0.00021917,2]
[323118503,1713682243096,-500.0,0.00021917,2]
[323118505,1713682243105,-500.0,0.00021917,2]
[323118506,1713682243114,-500.0,0.00021917,2]
[323118509,1713682243124,-500.0,0.00021917,2]
[323118511,1713682243133,-502.75060513,0.00021917,2]
[323118513,1713682243142,-239.30651496,0.00021917,2]
[323118514,1713682243152,-500.0,0.00021917,2]
[323118517,1713682243161,-502.93098282,0.00021917,2]
[323118519,1713682243170,-2074.47,0.00021917,2]
[323118520,1713682243179,-500.0,0.00021917,2]
[323118524,1713682243189,-500.0,0.00021917,2]
[323118526,1713682243198,-509.407307,0.00021917,2]
[323118528,1713682243207,-55793.57,0.00021917,2]
[323118529,1713682243216,-156.95461588,0.00021917,2]
[323118531,1713682243226,-500.0,0.00021917,2]
[323118534,1713682243240,-184.68869137,0.00021917,2]
[323118535,1713682243249,-500.0,0.00021917,2]
[323118538,1713682243259,-500.0,0.00021917,2]
[323118539,1713682243268,-507.48792928,0.00021917,2]
[323118542,1713682243277,-500.0,0.00021917,2]
[323118545,1713682243287,-571.08,0.00021917,2]
[323118547,1713682243296,-500.0,0.00021917,2]
[323118550,1713682243306,-641.6,0.00021917,2]
[323118552,1713682243317,-399.74627665,0.00021917,2]
[323118554,1713682243327,-500.0,0.00021917,2]
[323118557,1713682243336,-172.40412374,0.00021917,2]
[323118559,1713682243345,-151.227304,0.00021917,2]
[323118561,1713682243354,-500.0,0.00021917,2]
[323118563,1713682243363,-500.0,0.00021917,2]
[323118565,1713682243372,-500.0,0.00021917,2]
[323118567,1713682243381,-500.0,0.00021917,2]
[323118569,1713682243390,-500.0,0.00021917,2]
[323118571,1713682243399,-2161.83,0.00021917,2]
[323118573,1713682243409,-500.0,0.00021917,2]
[323118575,1713682243418,-527.9259086,0.00021917,2]
[323118577,1713682243427,-542.23,0.00021917,2]
[323118579,1713682243437,-501.79339691,0.00021917,2]
[323118581,1713682243447,-514.33832991,0.00021917,2]
[323118583,1713682243457,-3661.29,0.00021917,2]
[323118586,1713682243467,-500.0,0.00021917,2]